[Event "FIDE CB Open 2022"]
[Site "Ceske Budejovice"]
[Date "2022.07.02"]
[Round "2.13"]
[White "Palchuk, Andrii"]
[Black "Hurtik, Matej"]
[Result "0-1"]
[ECO "A43"]
[WhiteElo "2248"]
[BlackElo "2018"]
[Annotator "TA"]
[PlyCount "87"]
[EventDate "2022.07.01"]
[EventType "swiss"]
[EventCountry "CZE"]
[SourceTitle "playchess.com"]
[Source "ChessBase"]
[SourceQuality "1"]
[TimeControl "40/5400+30:1800+30"]

{[%evp 14,87,29,31,45,20,17,18,12,18,14,19,36,27,46,45,70,64,113,104,101,121,120,126,131,115,100,83,94,83,77,73,90,75,146,143,138,158,143,138,172,127,177,164,184,187,175,165,181,156,139,138,270,109,111,102,93,31,44,39,83,30,31,-8,853,-59,-29,-202,452,-451,430,0,545,464,866,376]} 1. d4 {[%emt 0:00:10]} c5 {[%emt 0:01:55]} 2. d5 {[%emt 0:00:11]} e6 {[%emt 0:00:31]} 3. e4 {[%emt 0:03:33]} Nf6 {[%emt 0:02:39]} 4. Nc3 {[%emt 0:00:54]} d6 {[%emt 0:04:32]} 5. Be2 {[%emt 0:04:35]} Be7 {[%emt 0:01:41]} 6. Nf3 {[%emt 0:00:26]} O-O {[%emt 0:00:25]} 7. O-O {[%emt 0:00:39]} exd5 {[%emt 0:01:52]} 8. exd5 {[%emt 0:01:39]} Bg4 {[%emt 0:00:43] A43: Schmid Benoni.} 9. Nd2 {[%emt 0:02:19]} Bxe2 {[%emt 0:00:28]} 10. Qxe2 {[%emt 0:00:04]} Na6 {[%emt 0:00:51] [#] The position is equal.} 11. Nc4 $146 {[%emt 0:05:49]} ({Predecessor:} 11. Nce4 Nc7 12. Qd3 Nxe4 13. Nxe4 f5 14. Nd2 b5 15. c4 a6 16. Rb1 Qd7 17. b3 {1-0 (39) Vavrak,P (2210)-Biolek,R (2425) Frydek Mistek 1998}) 11... Nc7 {[%emt 0:03:02]} 12. Ne3 {[%emt 0:09:03]} Qd7 {[%emt 0:05:08] Inhibits Nf5.} 13. a4 {[%emt 0:00:53]} Rfe8 {[%emt 0:01:11]} 14. Qf3 {[%emt 0:05:09]} Bf8 {[%emt 0:02:12]} 15. h3 {[%emt 0:17:30]} Re5 {[%emt 0:25:44]} (15... Qe7 $14 {should be considered.}) 16. b3 $16 {[%emt 0:03:25]} Rae8 {[%emt 0:05:10]} 17. Bb2 {[%emt 0:00:27]} Ne4 {[%emt 0:05:51]} 18. Nxe4 {[%emt 0:07:03]} Rxe4 {[%emt 0:00:09]} 19. Nf5 {[%emt 0:00:40][%cal Of5h6]} f6 {[%emt 0:23:28]} 20. Ng3 {[%emt 0:16:42]} R4e7 {[%emt 0:01:31]} 21. Nh5 {[%emt 0:00:25]} Re2 {[%emt 0:04:46]} 22. Rac1 {[%emt 0:06:22]} Qf7 {[%emt 0:01:19]} 23. Rfd1 $36 {[%emt 0:01:12][%mdl 2048] Black is under strong pressure.} b5 {[%emt 0:05:11]} (23... R2e7 $142) 24. Ng3 {[%emt 0:03:31]} R2e7 {[%emt 0:00:37]} 25. axb5 {[%emt 0:00:06]} Nxb5 {[%emt 0:00:08]} 26. Ra1 {[%emt 0:00:08]} Qg6 {[%emt 0:01:43]} 27. Rdc1 {[%emt 0:03:38]} Nd4 {[%emt 0:00:39]} (27... Qg5 $16 {is a better defense.} 28. Rd1 Rb7) 28. Bxd4 $18 {[%emt 0:00:05]} cxd4 {[%emt 0:00:02]} 29. Nf5 {[%emt 0:01:49]} Re4 {[%emt 0:00:39] [#]} 30. Rd1 $1 {[%emt 0:00:56]} (30. Rxa7 $2 Qg5 31. Rd1 Rf4 32. Qxf4 Qxf4 $19) 30... R8e5 {[%emt 0:00:48]} 31. Ng3 {[%emt 0:04:48]} Rh4 {[%emt 0:00:18]} 32. Qd3 {[%emt 0:00:27]} (32. Rxa7 $6 Qxc2 33. Kh2 Qc5 $14) 32... Qf7 {[%emt 0:00:42]} (32... Rxd5 $16 {was necessary.} 33. Rxa7 Qxd3 34. cxd3 (34. Rxd3 Rc5 $16) 34... f5) 33. Qa6 {[%emt 0:01:30]} (33. Nf5 $18 {is the precise move to win.} Rh5 34. Nxd4) 33... Qxd5 $16 {[%emt 0:00:24]} 34. Qxa7 {[%emt 0:00:06]} Qc6 {[%emt 0:00:39]} 35. Rd2 {[%emt 0:01:11]} (35. Rxd4 $6 Rxd4 36. Qxd4 Qxc2 $11) (35. Ra2 $16) 35... Qc3 {[%emt 0:00:23]} 36. Rad1 {[%emt 0:00:14]} d5 {[%emt 0:00:35]} 37. Ne2 {[%emt 0:00:43]} (37. Qd7 $16) 37... Qc8 $1 $11 {[%emt 0:00:08][%cal Od4d3]} 38. Kh2 {[%emt 0:00:00]} Rf4 $2 {[%emt 0:00:00][%mdl 8192]} 39. Ng3 $2 {[%emt 0:00:00]} (39. Nxf4 $18 Bd6 40. Kg1) 39... Bb4 {[%emt 0:00:40]} 40. Rd3 $2 {[%emt 0:02:08]} (40. Rxd4 $2 Bc5 41. Qxc5 Qxc5 $19) (40. Re2 $11) 40... Ba3 $4 {[%emt 0:01:46][%mdl 8192]} 41. Rb1 $4 {[%emt 0:30:30][%mdl 8192]} (41. Qxa3 $18 {was the only winning move.} Rxf2 42. R3d2 Rxd2 43. Rxd2) 41... Qe8 $4 {[%emt 0:30:30][%mdl 8192]} 42. Kh1 $2 {[%emt 0:00:30]} ({Don't do} 42. Qxa3 Rxf2 43. Qc5 Qe7 44. Qc8+ Qf8 $18) (42. b4 $18) 42... Rh4 $2 {[%emt 0:00:30][%mdl 8192]} 43. b4 {[%emt 0:00:30]} Qb5 {[%emt 0:00:30]} (43... Re1+ $142 44. Rxe1 Qxe1+ 45. Kh2 Bc1) 44. Kg1 {[%emt 0:00:30][%mdl 32768] Weighted Error Value: White=0.62/Black=0.88. Sensor Board Error (Ke4/e5)?} (44. Rxa3 $142 d3 45. cxd3) 0-1

[Event "FIDE CB Open 2022"]
[Site "Ceske Budejovice"]
[Date "2022.07.02"]
[Round "2.14"]
[White "Puncochar, Jiri"]
[Black "Domalchuk-Jonasson, Aleksandr"]
[Result "0-1"]
[ECO "C07"]
[WhiteElo "2020"]
[BlackElo "2244"]
[Annotator "RC"]
[PlyCount "138"]
[EventDate "2022.07.01"]
[EventType "swiss"]
[EventCountry "CZE"]
[SourceTitle "playchess.com"]
[Source "ChessBase"]
[SourceQuality "1"]
[TimeControl "40/5400+30:1800+30"]

1. e4 {[%emt 0:00:08]} e6 {[%emt 0:00:09]} 2. d4 {[%emt 0:00:06]} d5 {[%emt 0:00:11]} 3. Nd2 {[%emt 0:00:06]} c5 {[%emt 0:00:33]} 4. exd5 {[%emt 0:00:28]} Qxd5 {[%emt 0:00:09]} 5. Ngf3 {[%emt 0:00:23]} cxd4 {[%emt 0:00:31]} 6. Bc4 {[%emt 0:00:33]} Qd7 {[%emt 0:00:19]} 7. O-O {[%emt 0:00:53]} Nc6 {[%emt 0:01:58]} 8. Nb3 {[%emt 0:00:49]} a6 {[%emt 0:00:20]} 9. Nbxd4 {[%emt 0:01:33]} Nxd4 {[%emt 0:00:13]} 10. Qxd4 {[%emt 0:00:56]} Qxd4 {[%emt 0:00:36]} 11. Nxd4 {[%emt 0:00:05]} Bd7 {[%emt 0:01:01]} 12. Be3 {[%emt 0:03:35]} Rc8 {[%emt 0:07:18]} 13. Bb3 {[%emt 0:03:15]} Bc5 {[%emt 0:02:35]} 14. c3 {[%emt 0:01:47]} Nf6 {[%emt 0:07:31]} 15. Rad1 {[%emt 0:01:26]} O-O {[%emt 0:08:46]} 16. h3 {[%emt 0:04:56]} b5 {[%emt 0:04:20]} 17. Nc2 {[%emt 0:05:36]} Be7 {[%emt 0:10:11]} 18. Bd4 {[%emt 0:05:44]} Bc6 {[%emt 0:01:29]} 19. Be5 {[%emt 0:06:11]} Ne4 {[%emt 0:08:36]} 20. Nd4 {[%emt 0:04:13]} Be8 {[%emt 0:09:58]} 21. a3 {[%emt 0:09:46]} Nc5 {[%emt 0:03:04]} 22. Ba2 {[%emt 0:05:26]} Na4 {[%emt 0:02:04]} 23. Rd2 {[%emt 0:00:30]} Nb6 {[%emt 0:01:21]} 24. Re2 {[%emt 0:01:50]} Nc4 {[%emt 0:03:21]} 25. Bg3 {[%emt 0:01:18]} Bd7 {[%emt 0:10:16]} 26. Bb1 {[%emt 0:05:31]} Bf6 {[%emt 0:02:41]} 27. Rd1 {[%emt 0:03:16]} Rfd8 {[%emt 0:01:09]} 28. Be4 {[%emt 0:09:46]} Bc6 {[%emt 0:03:30]} 29. Bd3 {[%emt 0:07:05]} Bb7 {[%emt 0:03:15]} 30. Bxc4 {[%emt 0:03:36]} Rxc4 {[%emt 0:02:11]} 31. Be5 {[%emt 0:02:39]} Be7 {[%emt 0:00:45]} 32. Red2 {[%emt 0:02:16]} Rcc8 {[%emt 0:02:18]} 33. Nb3 {[%emt 0:06:06]} Rxd2 {[%emt 0:02:14]} 34. Rxd2 {[%emt 0:00:08]} Bd5 {[%emt 0:00:05]} 35. Nd4 {[%emt 0:00:59]} f6 {[%emt 0:00:28]} 36. Bf4 {[%emt 0:01:36]} Bf8 {[%emt 0:01:44]} 37. Be3 {[%emt 0:00:20]} Kf7 {[%emt 0:00:25]} 38. f3 {[%emt 0:00:51]} h5 {[%emt 0:00:58]} 39. h4 {[%emt 0:01:09]} g6 {[%emt 0:00:40]} 40. Kf2 {[%emt 0:00:00]} Ke8 {[%emt 0:00:00]} 41. Nc2 {[%emt 0:08:47]} Bc4 {[%emt 0:10:00]} 42. Nd4 {[%emt 0:02:05]} Rb8 {[%emt 0:07:03]} 43. Ne2 {[%emt 0:01:12]} Bd5 {[%emt 0:00:54]} 44. Nf4 {[%emt 0:03:41]} Bc6 {[%emt 0:01:40]} 45. Nd3 {[%emt 0:05:09]} Kf7 {[%emt 0:00:11]} 46. g3 {[%emt 0:04:31]} Be7 {[%emt 0:02:52]} 47. Nc5 {[%emt 0:00:55]} e5 {[%emt 0:01:28]} 48. Nb3 {[%emt 0:02:18]} Rc8 {[%emt 0:02:05]} 49. Nc1 {[%emt 0:00:34]} Ke6 {[%emt 0:01:31]} 50. Nd3 {[%emt 0:01:30]} Bb7 {[%emt 0:01:03]} 51. Ke2 {[%emt 0:00:40]} g5 {[%emt 0:01:39]} 52. hxg5 {[%emt 0:00:31]} fxg5 {[%emt 0:00:01]} 53. Nf2 {[%emt 0:02:20]} Rf8 {[%emt 0:04:20]} 54. Ne4 {[%emt 0:03:59]} g4 {[%emt 0:00:11]} 55. Nc5+ {[%emt 0:00:12]} Bxc5 {[%emt 0:00:04]} 56. Bxc5 {[%emt 0:00:05]} Rxf3 {[%emt 0:02:12]} 57. Rd6+ {[%emt 0:00:52]} Kf5 {[%emt 0:00:31]} 58. Bf2 {[%emt 0:00:07]} Ke4 {[%emt 0:00:18]} 59. Rd1 {[%emt 0:02:20]} Bc6 {[%emt 0:00:59]} 60. Kf1 {[%emt 0:00:23]} Bd5 {[%emt 0:00:30]} 61. Kg2 {[%emt 0:00:59]} h4 {[%emt 0:00:40]} 62. Kg1 {[%emt 0:00:14]} h3 {[%emt 0:00:19]} 63. Be1 {[%emt 0:01:03]} Bc6 {[%emt 0:01:02]} 64. Rc1 {[%emt 0:00:25]} Rd3 {[%emt 0:00:55]} 65. Rc2 {[%emt 0:00:46]} Kd5 {[%emt 0:00:39]} 66. Re2 {[%emt 0:00:18]} Kc4 {[%emt 0:00:29]} 67. Bf2 {[%emt 0:00:33]} e4 {[%emt 0:00:11]} 68. Kh2 {[%emt 0:00:03]} Rd1 {[%emt 0:00:13]} 69. Bg1 {[%emt 0:00:10]} e3 {[%emt 0:00:13]} 0-1

[Event "FIDE CB Open 2022"]
[Site "Ceske Budejovice"]
[Date "2022.07.02"]
[Round "2.25"]
[White "Matras, Ondrej"]
[Black "Zezula, Jakub"]
[Result "1/2-1/2"]
[ECO "D52"]
[WhiteElo "2229"]
[BlackElo "1831"]
[Annotator "RC"]
[PlyCount "78"]
[EventDate "2022.07.01"]
[EventType "swiss"]
[EventCountry "CZE"]
[SourceTitle "playchess.com"]
[Source "ChessBase"]
[SourceQuality "1"]
[TimeControl "40/5400+30:1800+30"]

1. d4 {[%emt 0:05:11]} d5 {[%emt 0:00:08]} 2. c4 {[%emt 0:00:01]} c6 {[%emt 0:00:07]} 3. Nf3 {[%emt 0:00:10]} Nf6 {[%emt 0:00:37]} 4. Nc3 {[%emt 0:02:06]} e6 {[%emt 0:00:33]} 5. Bg5 {[%emt 0:00:04]} Nbd7 {[%emt 0:00:08]} 6. e3 {[%emt 0:04:09]} Qa5 {[%emt 0:01:20]} 7. Nd2 {[%emt 0:00:49]} Bb4 {[%emt 0:02:28]} 8. Qc1 {[%emt 0:00:18]} dxc4 {[%emt 0:03:09]} 9. Bxf6 {[%emt 0:00:21]} Nxf6 {[%emt 0:00:09]} 10. Nxc4 {[%emt 0:00:38]} Qc7 {[%emt 0:01:04]} 11. a3 {[%emt 0:00:52]} Be7 {[%emt 0:00:21]} 12. Bd3 {[%emt 0:07:31]} O-O {[%emt 0:03:40]} 13. Qc2 {[%emt 0:11:52]} b6 {[%emt 0:08:10]} 14. Ne5 {[%emt 0:06:50]} Bb7 {[%emt 0:04:00]} 15. Ne4 {[%emt 0:04:53]} h6 {[%emt 0:05:36]} 16. O-O {[%emt 0:05:51]} Rac8 {[%emt 0:18:36]} 17. Rac1 {[%emt 0:00:46]} Rfd8 {[%emt 0:00:48]} 18. f4 {[%emt 0:12:09]} c5 {[%emt 0:11:34]} 19. f5 {[%emt 0:06:04]} exf5 {[%emt 0:05:08]} 20. Rxf5 {[%emt 0:02:13]} Nxe4 {[%emt 0:01:48]} 21. Bxe4 {[%emt 0:00:31]} Bf6 {[%emt 0:24:50]} 22. Nf3 {[%emt 0:24:56]} cxd4 {[%emt 0:05:27]} 23. Qxc7 {[%emt 0:01:40]} Rxc7 {[%emt 0:00:01]} 24. Rxc7 {[%emt 0:00:07]} Bxe4 {[%emt 0:00:17]} 25. Rxf6 {[%emt 0:00:42]} dxe3 {[%emt 0:01:32]} 26. Kf1 {[%emt 0:01:43]} gxf6 {[%emt 0:00:22]} 27. Ke2 {[%emt 0:00:13]} Bxf3+ {[%emt 0:00:25]} 28. gxf3 {[%emt 0:00:46]} Rd2+ {[%emt 0:00:15]} 29. Kxe3 {[%emt 0:00:03]} Rxb2 {[%emt 0:00:14]} 30. Rxa7 {[%emt 0:00:25]} Rxh2 {[%emt 0:00:12]} 31. Rb7 {[%emt 0:00:30]} Ra2 {[%emt 0:00:15]} 32. Rxb6 {[%emt 0:00:14]} Rxa3+ {[%emt 0:00:05]} 33. Kf4 {[%emt 0:00:14]} Kg7 {[%emt 0:00:08]} 34. Kg4 {[%emt 0:00:36]} Ra4+ {[%emt 0:00:56]} 35. f4 {[%emt 0:00:58]} h5+ {[%emt 0:00:41]} 36. Kf3 {[%emt 0:01:21]} Ra3+ {[%emt 0:00:44]} 37. Kg2 {[%emt 0:00:09]} h4 {[%emt 0:00:34]} 38. Rb5 {[%emt 0:00:58]} h3+ {[%emt 0:00:42]} 39. Kh2 {[%emt 0:00:09]} Kg6 {[%emt 0:00:24]} 1/2-1/2

[Event "FIDE CB Open 2022"]
[Site "Ceske Budejovice"]
[Date "2022.07.02"]
[Round "2.26"]
[White "Travnicek, Jaroslav"]
[Black "Abdulla, Khayala"]
[Result "0-1"]
[ECO "B22"]
[WhiteElo "1730"]
[BlackElo "2207"]
[Annotator "RC"]
[PlyCount "66"]
[EventDate "2022.07.01"]
[EventType "swiss"]
[EventCountry "CZE"]
[SourceTitle "playchess.com"]
[Source "ChessBase"]
[SourceQuality "1"]
[TimeControl "40/5400+30:1800+30"]

1. e4 {[%emt 0:00:14]} c5 {[%emt 0:00:04]} 2. c3 {[%emt 0:00:20]} e6 {[%emt 0:01:32]} 3. d4 {[%emt 0:00:16]} d5 {[%emt 0:00:05]} 4. dxc5 {[%emt 0:01:50]} Bxc5 {[%emt 0:00:24]} 5. Bb5+ {[%emt 0:01:43]} Nc6 {[%emt 0:00:24]} 6. exd5 {[%emt 0:01:57]} exd5 {[%emt 0:01:11]} 7. Qe2+ {[%emt 0:05:06]} Nge7 {[%emt 0:00:33]} 8. Nf3 {[%emt 0:01:53]} O-O {[%emt 0:00:38]} 9. O-O {[%emt 0:01:12]} Bg4 {[%emt 0:01:40]} 10. Qd3 {[%emt 0:03:02]} Qd6 {[%emt 0:03:45]} 11. h3 {[%emt 0:03:35]} Bf5 {[%emt 0:03:49]} 12. Qd1 {[%emt 0:03:45]} Rad8 {[%emt 0:07:45]} 13. Nbd2 {[%emt 0:04:17]} a6 {[%emt 0:07:07]} 14. Bxc6 {[%emt 0:12:16]} bxc6 {[%emt 0:01:43]} 15. Nb3 {[%emt 0:01:14]} Bb6 {[%emt 0:01:51]} 16. Nbd4 {[%emt 0:01:17]} Be4 {[%emt 0:03:24]} 17. Bg5 {[%emt 0:03:37]} f6 {[%emt 0:14:14]} 18. Bh4 {[%emt 0:06:37]} c5 {[%emt 0:00:47]} 19. Bg3 {[%emt 0:00:52]} Qd7 {[%emt 0:00:09]} 20. Nb3 {[%emt 0:02:43]} Ng6 {[%emt 0:05:39]} 21. Nbd2 {[%emt 0:04:38]} f5 {[%emt 0:07:41]} 22. Ne5 {[%emt 0:10:05]} Nxe5 {[%emt 0:03:49]} 23. Bxe5 {[%emt 0:00:04]} Qe6 {[%emt 0:02:00]} 24. Bf4 {[%emt 0:03:42]} Qg6 {[%emt 0:01:43]} 25. Nxe4 {[%emt 0:07:42]} fxe4 {[%emt 0:00:08]} 26. Bg3 {[%emt 0:01:15]} Rf5 {[%emt 0:03:34]} 27. Qe2 {[%emt 0:04:52]} c4 {[%emt 0:01:09]} 28. Kh1 {[%emt 0:00:52]} Re8 {[%emt 0:01:53]} 29. Qg4 {[%emt 0:04:11]} Qxg4 {[%emt 0:03:23]} 30. hxg4 {[%emt 0:00:03]} Rg5 {[%emt 0:00:08]} 31. Rad1 {[%emt 0:02:17]} Rxg4 {[%emt 0:08:49]} 32. Rxd5 {[%emt 0:05:09]} e3 {[%emt 0:02:08]} 33. Re1 {[%emt 0:02:42]} Re6 {[%emt 0:01:45]} 0-1

[Event "FIDE CB Open 2022"]
[Site "Ceske Budejovice"]
[Date "2022.07.02"]
[Round "2.27"]
[White "Mostbauer, Maximilian"]
[Black "Svoboda, Petr"]
[Result "1-0"]
[ECO "A07"]
[WhiteElo "2192"]
[BlackElo "2088"]
[Annotator "RC"]
[PlyCount "91"]
[EventDate "2022.07.01"]
[EventType "swiss"]
[EventCountry "CZE"]
[SourceTitle "playchess.com"]
[Source "ChessBase"]
[SourceQuality "1"]
[TimeControl "40/5400+30:1800+30"]

1. Nf3 {[%emt 0:00:10]} d5 {[%emt 0:00:13]} 2. b3 {[%emt 0:00:18]} Nf6 {[%emt 0:00:49]} 3. g3 {[%emt 0:00:36]} Bf5 {[%emt 0:00:27]} 4. Bg2 {[%emt 0:00:14]} e6 {[%emt 0:00:29]} 5. Bb2 {[%emt 0:00:39]} Nbd7 {[%emt 0:00:36]} 6. O-O {[%emt 0:01:52]} h6 {[%emt 0:00:48]} 7. d3 {[%emt 0:02:19]} Be7 {[%emt 0:01:07]} 8. Nbd2 {[%emt 0:00:29]} c6 {[%emt 0:02:32]} 9. Ne5 {[%emt 0:00:40]} O-O {[%emt 0:01:24]} 10. e4 {[%emt 0:05:17]} Bh7 {[%emt 0:03:03]} 11. Nxd7 {[%emt 0:05:23]} Nxd7 {[%emt 0:01:57]} 12. f4 {[%emt 0:01:22]} dxe4 {[%emt 0:04:50]} 13. dxe4 {[%emt 0:05:59]} a5 {[%emt 0:07:57]} 14. a4 {[%emt 0:08:06]} Re8 {[%emt 0:02:11]} 15. Nc4 {[%emt 0:06:50]} Nc5 {[%emt 0:05:38]} 16. Qg4 {[%emt 0:06:52]} Bf8 {[%emt 0:07:22]} 17. Rad1 {[%emt 0:04:57]} Qe7 {[%emt 0:14:15]} 18. Qe2 {[%emt 0:09:07]} Red8 {[%emt 0:03:23]} 19. Rxd8 {[%emt 0:21:39]} Rxd8 {[%emt 0:00:51]} 20. e5 {[%emt 0:02:01]} Qc7 {[%emt 0:03:47]} 21. Bc3 {[%emt 0:00:57]} b6 {[%emt 0:01:04]} 22. Be1 {[%emt 0:04:15]} Be7 {[%emt 0:05:36]} 23. Bf2 {[%emt 0:01:37]} b5 {[%emt 0:07:42]} 24. Nd6 {[%emt 0:00:44]} Bxd6 {[%emt 0:01:58]} 25. exd6 {[%emt 0:00:03]} Qxd6 {[%emt 0:00:12]} 26. axb5 {[%emt 0:00:19]} cxb5 {[%emt 0:01:09]} 27. Qxb5 {[%emt 0:01:18]} Ne4 {[%emt 0:01:12]} 28. Qxa5 {[%emt 0:02:31]} Nxf2 {[%emt 0:00:42]} 29. Rxf2 {[%emt 0:00:05]} Qd1+ {[%emt 0:00:34]} 30. Bf1 {[%emt 0:00:05]} Be4 {[%emt 0:02:46]} 31. Qc5 {[%emt 0:02:30]} Rd2 {[%emt 0:02:19]} 32. Rxd2 {[%emt 0:01:59]} Qxd2 {[%emt 0:00:21]} 33. c3 {[%emt 0:01:31]} Qd1 {[%emt 0:01:02]} 34. Qe3 {[%emt 0:00:24]} Bf5 {[%emt 0:02:48]} 35. b4 {[%emt 0:01:54]} Qa1 {[%emt 0:00:51]} 36. Kf2 {[%emt 0:00:38]} Qb2+ {[%emt 0:01:25]} 37. Kg1 {[%emt 0:01:25]} Qa1 {[%emt 0:00:13]} 38. Kf2 {[%emt 0:01:09]} Qb2+ {[%emt 0:00:37]} 39. Be2 {[%emt 0:00:54]} Bg4 {[%emt 0:00:28]} 40. b5 {[%emt 0:00:27]} Bxe2 {[%emt 0:00:39]} 41. Qxe2 {[%emt 0:30:05]} Qxc3 {[%emt 0:30:09]} 42. b6 {[%emt 0:00:00]} Qc2 {[%emt 0:00:00]} 43. Kg2 {[%emt 0:00:00]} Qc6+ {[%emt 0:00:00]} 44. Kh3 {[%emt 0:00:00]} Qb5 {[%emt 0:00:00]} 45. Qf2 {[%emt 0:00:00]} g5 {[%emt 0:00:00]} 46. g4 {[%emt 0:00:00]} 1-0

[Event "FIDE CB Open 2022"]
[Site "Ceske Budejovice"]
[Date "2022.07.02"]
[Round "2.28"]
[White "Musil, Vitezslav"]
[Black "Koch-Muller, Oscar"]
[Result "1/2-1/2"]
[ECO "C10"]
[WhiteElo "1834"]
[BlackElo "2115"]
[Annotator "NA RC"]
[PlyCount "62"]
[EventDate "2022.07.01"]
[EventType "swiss"]
[EventCountry "CZE"]
[SourceTitle "playchess.com"]
[Source "ChessBase"]
[SourceQuality "1"]
[TimeControl "40/5400+30:1800+30"]

1. e4 {[%emt 0:00:15]} e6 {[%emt 0:00:13]} 2. d4 {[%emt 0:00:06]} d5 {[%emt 0:00:03]} 3. Nc3 {[%emt 0:00:03]} Be7 {[%emt 0:00:20]} 4. Nf3 {[%emt 0:01:55]} Nf6 {[%emt 0:00:04]} 5. Bd3 {[%emt 0:02:29]} c5 {[%emt 0:00:22]} 6. exd5 {[%emt 0:07:50]} exd5 {[%emt 0:04:54]} 7. O-O {[%emt 0:03:19]} O-O {[%emt 0:02:22]} 8. dxc5 {[%emt 0:01:47]} Bg4 {[%emt 0:02:49]} 9. h3 {[%emt 0:01:28]} Bh5 {[%emt 0:00:27]} 10. Bg5 {[%emt 0:00:17]} Nbd7 {[%emt 0:04:26]} 11. Rb1 {[%emt 0:15:06]} Nxc5 {[%emt 0:30:48]} 12. Bxf6 {[%emt 0:04:33]} Bxf6 {[%emt 0:16:06]} 13. Nxd5 {[%emt 0:01:10]} Nxd3 {[%emt 0:00:56]} 14. Qxd3 {[%emt 0:03:53]} Rc8 {[%emt 0:05:22]} 15. Qb3 {[%emt 0:24:41]} b6 {[%emt 0:03:16]} 16. c4 {[%emt 0:02:47]} Bxf3 {[%emt 0:07:46]} 17. Qxf3 {[%emt 0:02:51]} Rxc4 {[%emt 0:01:45]} 18. Nxf6+ {[%emt 0:02:11]} Qxf6 {[%emt 0:00:19]} 19. Qxf6 {[%emt 0:01:33]} gxf6 {[%emt 0:00:01]} 20. Rfe1 {[%emt 0:01:22]} Rd8 {[%emt 0:00:35]} 21. Re3 {[%emt 0:01:42]} Rd2 {[%emt 0:01:07]} 22. Rf3 {[%emt 0:01:57]} Rcc2 {[%emt 0:05:10]} 23. b3 {[%emt 0:00:17]} Rxa2 {[%emt 0:01:06]} 24. Rxf6 {[%emt 0:00:01]} Kg7 {[%emt 0:02:13]} 25. Rf3 {[%emt 0:02:17]} a5 {[%emt 0:00:33]} 26. Rc1 {[%emt 0:00:28]} Rd7 {[%emt 0:00:29]} 27. Rc4 {[%emt 0:00:21]} Ra3 {[%emt 0:04:23]} 28. Rg4+ {[%emt 0:00:14]} Kf8 {[%emt 0:01:00]} 29. Rh4 {[%emt 0:00:20]} Kg7 {[%emt 0:00:45]} 30. Rg4+ {[%emt 0:00:01]} Kf8 {[%emt 0:02:08]} 31. Rh4 {[%emt 0:00:02]} Kg7 {[%emt 0:01:05]} 1/2-1/2

[Event "FIDE CB Open 2022"]
[Site "Ceske Budejovice"]
[Date "2022.07.02"]
[Round "2.29"]
[White "Hrbek, Jachym"]
[Black "Sykora, Ondrej"]
[Result "0-1"]
[ECO "C53"]
[WhiteElo "1695"]
[BlackElo "2099"]
[Annotator "NA RC"]
[PlyCount "84"]
[EventDate "2022.07.01"]
[EventType "swiss"]
[EventCountry "CZE"]
[SourceTitle "playchess.com"]
[Source "ChessBase"]
[SourceQuality "1"]
[TimeControl "40/5400+30:1800+30"]

1. e4 {[%emt 0:00:09]} e5 {[%emt 0:00:06]} 2. Nf3 {[%emt 0:00:06]} Nc6 {[%emt 0:00:03]} 3. Bc4 {[%emt 0:00:35]} Bc5 {[%emt 0:00:06]} 4. c3 {[%emt 0:00:30]} d6 {[%emt 0:00:06]} 5. d4 {[%emt 0:00:04]} exd4 {[%emt 0:00:04]} 6. cxd4 {[%emt 0:00:07]} Bb6 {[%emt 0:00:04]} 7. Bb5 {[%emt 0:00:09]} Bd7 {[%emt 0:00:07]} 8. Nc3 {[%emt 0:00:08]} Nge7 {[%emt 0:01:54]} 9. O-O {[%emt 0:00:23]} O-O {[%emt 0:00:02]} 10. h3 {[%emt 0:00:12]} h6 {[%emt 0:00:26]} 11. Re1 {[%emt 0:13:25]} Qc8 {[%emt 0:05:49]} 12. Bf4 {[%emt 0:11:21]} Ng6 {[%emt 0:05:56]} 13. Bh2 {[%emt 0:06:01]} Nce7 {[%emt 0:01:08]} 14. Bc4 {[%emt 0:08:28]} Be6 {[%emt 0:01:21]} 15. d5 {[%emt 0:09:42]} Bd7 {[%emt 0:00:08]} 16. Bf1 {[%emt 0:02:22]} Qd8 {[%emt 0:06:09]} 17. Qd2 {[%emt 0:06:52]} Re8 {[%emt 0:07:37]} 18. Rad1 {[%emt 0:05:58]} Nc8 {[%emt 0:02:09]} 19. Nd4 {[%emt 0:11:57]} Qf6 {[%emt 0:01:41]} 20. Kh1 {[%emt 0:02:24]} a6 {[%emt 0:02:52]} 21. f4 {[%emt 0:02:57]} Nxf4 {[%emt 0:00:32]} 22. Bxf4 {[%emt 0:05:05]} Bxd4 {[%emt 0:00:12]} 23. Qxd4 {[%emt 0:00:25]} Qxf4 {[%emt 0:00:06]} 24. Re3 {[%emt 0:06:41]} Nb6 {[%emt 0:20:44]} 25. Be2 {[%emt 0:02:08]} Qe5 {[%emt 0:02:36]} 26. Qxe5 {[%emt 0:04:03]} Rxe5 {[%emt 0:00:28]} 27. Rf3 {[%emt 0:00:24]} Be8 {[%emt 0:07:35]} 28. Rdf1 {[%emt 0:00:48]} f6 {[%emt 0:01:11]} 29. Rf4 {[%emt 0:01:00]} Bg6 {[%emt 0:02:16]} 30. Bg4 {[%emt 0:00:23]} Rae8 {[%emt 0:01:00]} 31. Be6+ {[%emt 0:00:36]} Bf7 {[%emt 0:00:10]} 32. Bxf7+ {[%emt 0:00:33]} Kxf7 {[%emt 0:00:03]} 33. b3 {[%emt 0:00:16]} c6 {[%emt 0:04:29]} 34. dxc6 {[%emt 0:00:27]} bxc6 {[%emt 0:01:22]} 35. g4 {[%emt 0:00:42]} Rc5 {[%emt 0:02:24]} 36. R4f3 {[%emt 0:00:36]} h5 {[%emt 0:01:07]} 37. Kg2 {[%emt 0:00:28]} hxg4 {[%emt 0:00:37]} 38. hxg4 {[%emt 0:00:03]} Nd7 {[%emt 0:00:13]} 39. Rg3 {[%emt 0:00:41]} Ree5 {[%emt 0:04:44]} 40. Rd1 {[%emt 0:00:48]} Ke7 {[%emt 0:01:00]} 41. Rgd3 {[%emt 0:01:33]} Rg5 {[%emt 0:00:47]} 42. Rxd6 {[%emt 0:09:56]} g6 {[%emt 0:10:02]} 0-1